[Event "EYCC Open-U10 2019"]
[Site "Bratislava"]
[Date "2019.08.06"]
[Round "5.25"]
[White "Wielgus, Wojciech"]
[Black "Bukvaj, Martin"]
[Result "1/2-1/2"]
[ECO "C65"]
[WhiteElo "1655"]
[BlackElo "1220"]
[Annotator "NA"]
[PlyCount "78"]
[EventDate "2019.08.02"]
[EventType "swiss"]
[EventCountry "SVK"]
[SourceTitle "playchess.com"]
[Source "ChessBase"]
[SourceQuality "1"]
[TimeControl "40/5400+30:1800+30"]

1. e4 {[%emt 0:00:16]} e5 {[%emt 0:00:00]} 2. Nf3 {[%emt 0:00:09]} Nc6 {[%emt 0:00:05]} 3. Bb5 {[%emt 0:03:23]} Nf6 {[%emt 0:00:42]} 4. O-O {[%emt 0:02:01]} a6 {[%emt 0:00:56]} 5. Bxc6 {[%emt 0:14:25]} dxc6 {[%emt 0:00:15]} 6. Nxe5 {[%emt 0:00:20]} Be7 {[%emt 0:03:20]} 7. d3 {[%emt 0:10:47]} O-O {[%emt 0:02:52]} 8. Be3 {[%emt 0:12:52]} Ne8 {[%emt 0:02:47]} 9. Nc3 {[%emt 0:09:06]} f5 {[%emt 0:01:30]} 10. exf5 {[%emt 0:16:42]} Bxf5 {[%emt 0:00:13]} 11. Nc4 {[%emt 0:04:51]} Nf6 {[%emt 0:03:26]} 12. Ne2 {[%emt 0:06:25]} Nd5 {[%emt 0:01:42]} 13. Ng3 {[%emt 0:02:12]} Bg6 {[%emt 0:00:19]} 14. d4 {[%emt 0:11:08]} Bf6 {[%emt 0:02:22]} 15. c3 {[%emt 0:01:16]} Re8 {[%emt 0:00:48]} 16. Re1 {[%emt 0:01:29]} Qd7 {[%emt 0:00:46]} 17. a4 {[%emt 0:00:34]} Re7 {[%emt 0:00:18]} 18. Bd2 {[%emt 0:00:29]} Rae8 {[%emt 0:00:45]} 19. Rxe7 {[%emt 0:00:26]} Rxe7 {[%emt 0:00:15]} 20. Qb3 {[%emt 0:00:34]} b5 {[%emt 0:00:39]} 21. Ne3 {[%emt 0:00:30]} h5 {[%emt 0:00:43]} 22. Nxd5 {[%emt 0:00:30]} Qxd5 {[%emt 0:00:29]} 23. Qxd5+ {[%emt 0:00:07]} cxd5 {[%emt 0:00:08]} 24. axb5 {[%emt 0:00:39]} axb5 {[%emt 0:00:11]} 25. Re1 {[%emt 0:00:44]} Rxe1+ {[%emt 0:00:35]} 26. Bxe1 {[%emt 0:00:01]} Bg5 {[%emt 0:00:21]} 27. Ne2 {[%emt 0:00:59]} Bd3 {[%emt 0:01:25]} 28. Kf1 {[%emt 0:00:30]} Bc4 {[%emt 0:00:35]} 29. b4 {[%emt 0:00:16]} Kf7 {[%emt 0:00:37]} 30. g3 {[%emt 0:00:35]} Ke6 {[%emt 0:00:23]} 31. f4 {[%emt 0:00:24]} Be7 {[%emt 0:00:15]} 32. Kf2 {[%emt 0:00:22]} Kf5 {[%emt 0:00:10]} 33. Ng1 {[%emt 0:00:53]} g5 {[%emt 0:00:38]} 34. Bd2 {[%emt 0:00:29]} g4 {[%emt 0:00:17]} 35. Ne2 {[%emt 0:00:31]} Ke4 {[%emt 0:00:13]} 36. Nc1 {[%emt 0:00:30]} Bf6 {[%emt 0:00:26]} 37. Be3 {[%emt 0:00:29]} Be7 38. Ne2 Kd3 39. Nc1+ Ke4 1/2-1/2

[Event "EYCC Open-U10 2019"]
[Site "Bratislava"]
[Date "2019.08.06"]
[Round "5.26"]
[White "Villa Tornero, Alex"]
[Black "Batozhargalov, Erdem"]
[Result "1-0"]
[ECO "D00"]
[WhiteElo "1641"]
[BlackElo "1080"]
[Annotator "NA"]
[PlyCount "111"]
[EventDate "2019.08.02"]
[EventType "swiss"]
[EventCountry "SVK"]
[SourceTitle "playchess.com"]
[Source "ChessBase"]
[SourceQuality "1"]
[TimeControl "40/5400+30:1800+30"]

1. d4 {[%emt 0:02:41]} d5 {[%emt 0:00:00]} 2. Bf4 {[%emt 0:00:52]} Nf6 {[%emt 0:00:00]} 3. e3 {[%emt 0:00:48]} c5 {[%emt 0:01:08]} 4. c3 {[%emt 0:01:18]} Nc6 {[%emt 0:00:58]} 5. Nd2 {[%emt 0:00:46]} Bf5 {[%emt 0:00:15]} 6. Qb3 {[%emt 0:00:41]} Qb6 {[%emt 0:00:39]} 7. dxc5 {[%emt 0:00:58]} Qxb3 {[%emt 0:00:48]} 8. axb3 {[%emt 0:00:29]} e5 {[%emt 0:02:08]} 9. Bg3 {[%emt 0:02:53]} Nh5 {[%emt 0:06:25]} 10. b4 {[%emt 0:03:17]} Nxg3 {[%emt 0:01:49]} 11. hxg3 {[%emt 0:00:04]} Be7 {[%emt 0:01:49]} 12. Ngf3 {[%emt 0:00:54]} h6 {[%emt 0:01:53]} 13. b5 {[%emt 0:02:15]} Nd8 {[%emt 0:02:34]} 14. Nxe5 {[%emt 0:00:50]} Bxc5 {[%emt 0:00:33]} 15. Nb3 {[%emt 0:01:05]} Bd6 {[%emt 0:00:57]} 16. Nf3 {[%emt 0:00:51]} Bd7 {[%emt 0:02:07]} 17. O-O-O {[%emt 0:00:42]} Bc7 {[%emt 0:03:24]} 18. Nc5 {[%emt 0:01:05]} Be6 {[%emt 0:02:23]} 19. Bd3 {[%emt 0:04:13]} O-O {[%emt 0:00:40]} 20. Rh4 {[%emt 0:02:48]} Bd6 {[%emt 0:03:02]} 21. Nb3 {[%emt 0:00:40]} a5 {[%emt 0:06:22]} 22. bxa6 {[%emt 0:02:19]} bxa6 {[%emt 0:00:50]} 23. Nbd4 {[%emt 0:00:19]} Be7 {[%emt 0:07:23]} 24. Rh2 {[%emt 0:02:09]} a5 {[%emt 0:02:16]} 25. Kd2 {[%emt 0:03:09]} a4 {[%emt 0:09:14]} 26. Nh4 {[%emt 0:05:00]} Rb8 {[%emt 0:09:06]} 27. Rb1 {[%emt 0:01:18]} Ra8 {[%emt 0:10:43]} 28. Nhf5 {[%emt 0:01:08]} Bxf5 {[%emt 0:00:13]} 29. Nxf5 {[%emt 0:00:08]} Bc5 {[%emt 0:00:18]} 30. Nd4 {[%emt 0:01:40]} Ne6 {[%emt 0:01:00]} 31. Rh5 {[%emt 0:00:42]} Rfd8 {[%emt 0:03:24]} 32. Re5 {[%emt 0:03:47]} Nxd4 {[%emt 0:01:39]} 33. exd4 {[%emt 0:00:35]} Bf8 {[%emt 0:00:58]} 34. Ra1 {[%emt 0:00:27]} Rdb8 {[%emt 0:00:36]} 35. Kc2 {[%emt 0:00:17]} Rd8 {[%emt 0:02:40]} 36. Bb5 {[%emt 0:00:24]} a3 {[%emt 0:02:11]} 37. bxa3 {[%emt 0:00:08]} Rxa3 {[%emt 0:02:49]} 38. Rxa3 {[%emt 0:00:12]} Bxa3 {[%emt 0:00:05]} 39. Re8+ {[%emt 0:00:21]} Rxe8 {[%emt 0:00:25]} 40. Bxe8 {[%emt 0:00:00]} Kf8 {[%emt 0:00:00]} 41. Bc6 {[%emt 0:00:13]} Ke7 {[%emt 0:00:28]} 42. Bxd5 {[%emt 0:00:05]} f6 {[%emt 0:00:19]} 43. Kd3 {[%emt 0:00:10]} Kd6 {[%emt 0:00:15]} 44. Be4 {[%emt 0:00:19]} g5 {[%emt 0:01:09]} 45. g4 {[%emt 0:00:08]} Ke6 {[%emt 0:01:08]} 46. c4 {[%emt 0:00:05]} Be7 {[%emt 0:00:11]} 47. c5 {[%emt 0:00:16]} Bd8 {[%emt 0:00:48]} 48. Kc4 {[%emt 0:00:32]} Kd7 {[%emt 0:00:26]} 49. d5 {[%emt 0:00:11]} Kc7 {[%emt 0:00:37]} 50. Bf5 {[%emt 0:00:05]} Kb7 {[%emt 0:02:20]} 51. d6 {[%emt 0:00:08]} Kc6 {[%emt 0:00:25]} 52. Be4+ {[%emt 0:00:06]} Kd7 {[%emt 0:00:19]} 53. Kd5 {[%emt 0:00:05]} Kc8 {[%emt 0:01:01]} 54. Bf5+ {[%emt 0:00:09]} Kb7 {[%emt 0:01:33]} 55. c6+ {[%emt 0:00:06]} Kb6 {[%emt 0:00:15]} 56. c7 {[%emt 0:00:08]} 1-0

[Event "EYCC Open-U10 2019"]
[Site "Bratislava"]
[Date "2019.08.06"]
[Round "5.27"]
[White "Mukhomorov, Dobrynia"]
[Black "Grabs, Peter"]
[Result "0-1"]
[ECO "A40"]
[WhiteElo "1206"]
[BlackElo "1638"]
[Annotator "NA"]
[PlyCount "78"]
[EventDate "2019.08.02"]
[EventType "swiss"]
[EventCountry "SVK"]
[SourceTitle "playchess.com"]
[Source "ChessBase"]
[SourceQuality "1"]
[TimeControl "40/5400+30:1800+30"]

1. d4 {[%emt 0:00:00]} b6 {[%emt 0:00:00]} 2. c4 {[%emt 0:00:00]} Bb7 {[%emt 0:00:00]} 3. Nc3 {[%emt 0:00:15]} e6 {[%emt 0:00:00]} 4. e4 {[%emt 0:00:22]} Bb4 {[%emt 0:00:13]} 5. f3 {[%emt 0:00:45]} f5 {[%emt 0:00:15]} 6. d5 {[%emt 0:00:44]} fxe4 {[%emt 0:16:15]} 7. fxe4 {[%emt 0:00:37]} Qh4+ {[%emt 0:01:38]} 8. Ke2 {[%emt 0:01:02]} Bxc3 {[%emt 0:02:45]} 9. bxc3 {[%emt 0:00:13]} Qxe4+ {[%emt 0:00:33]} 10. Be3 {[%emt 0:00:14]} Qxc4+ {[%emt 0:00:15]} 11. Kf2 {[%emt 0:00:33]} Qxd5 {[%emt 0:00:27]} 12. Qe2 {[%emt 0:01:00]} Nf6 {[%emt 0:01:37]} 13. Ke1 {[%emt 0:00:49]} O-O {[%emt 0:00:20]} 14. Nf3 {[%emt 0:00:27]} Qa5 {[%emt 0:12:10]} 15. Bd2 {[%emt 0:01:28]} Ne4 {[%emt 0:02:10]} 16. Qe3 {[%emt 0:02:58]} Nxd2 {[%emt 0:02:29]} 17. Nxd2 {[%emt 0:00:43]} Nc6 {[%emt 0:03:17]} 18. Nf3 {[%emt 0:00:46]} Ne7 {[%emt 0:09:14]} 19. h4 {[%emt 0:02:40]} Nd5 {[%emt 0:00:29]} 20. Qg5 {[%emt 0:07:40]} Qxc3+ {[%emt 0:02:18]} 21. Kf2 {[%emt 0:01:24]} Qxa1 {[%emt 0:01:47]} 22. h5 {[%emt 0:01:11]} Qd4+ {[%emt 0:00:51]} 23. Ke2 {[%emt 0:01:03]} Qf4 {[%emt 0:00:47]} 24. Ke1 {[%emt 0:00:57]} Qxg5 {[%emt 0:00:30]} 25. Nxg5 {[%emt 0:00:05]} Nb4 {[%emt 0:00:51]} 26. h6 {[%emt 0:00:24]} g6 {[%emt 0:01:08]} 27. Bc4 {[%emt 0:00:39]} Bxg2 {[%emt 0:00:36]} 28. Rg1 {[%emt 0:00:45]} Bd5 {[%emt 0:00:10]} 29. Be2 {[%emt 0:00:26]} Nxa2 {[%emt 0:01:00]} 30. Bd3 {[%emt 0:00:10]} Nb4 {[%emt 0:01:35]} 31. Bb1 {[%emt 0:00:05]} a5 {[%emt 0:02:27]} 32. Nxh7 {[%emt 0:00:50]} Kxh7 {[%emt 0:00:36]} 33. Rxg6 {[%emt 0:00:14]} Ba2 {[%emt 0:01:29]} 34. Be4 {[%emt 0:01:28]} d5 {[%emt 0:00:11]} 35. Rg7+ {[%emt 0:00:05]} Kxh6 {[%emt 0:00:05]} 36. Rh7+ {[%emt 0:00:17]} Kg5 {[%emt 0:00:05]} 37. Rg7+ {[%emt 0:00:20]} Kf6 {[%emt 0:00:26]} 38. Rxc7 {[%emt 0:00:31]} dxe4 {[%emt 0:01:44]} 39. Rc1 {[%emt 0:00:06]} Nd3+ {[%emt 0:00:03]} 0-1

[Event "EYCC Open-U10 2019"]
[Site "Bratislava"]
[Date "2019.08.06"]
[Round "5.28"]
[White "Sitnikov, Arseni"]
[Black "Dyachuk, Artem"]
[Result "0-1"]
[ECO "B44"]
[WhiteElo "1184"]
[BlackElo "1538"]
[Annotator "NA"]
[PlyCount "92"]
[EventDate "2019.08.02"]
[EventType "swiss"]
[EventCountry "SVK"]
[SourceTitle "playchess.com"]
[Source "ChessBase"]
[SourceQuality "1"]
[TimeControl "40/5400+30:1800+30"]

1. e4 {[%emt 0:00:00]} c5 {[%emt 0:00:00]} 2. Nf3 {[%emt 0:00:31]} e6 {[%emt 0:00:00]} 3. d4 {[%emt 0:00:56]} cxd4 {[%emt 0:00:00]} 4. Nxd4 {[%emt 0:00:42]} Nc6 {[%emt 0:00:09]} 5. Nb5 {[%emt 0:00:25]} d6 {[%emt 0:00:31]} 6. Bf4 {[%emt 0:00:14]} e5 {[%emt 0:00:17]} 7. Be3 {[%emt 0:00:33]} a6 {[%emt 0:00:19]} 8. N5a3 {[%emt 0:00:09]} b5 {[%emt 0:00:23]} 9. Be2 {[%emt 0:00:40]} Nf6 {[%emt 0:00:26]} 10. O-O {[%emt 0:01:26]} Be6 {[%emt 0:00:12]} 11. Nd2 {[%emt 0:03:05]} Be7 {[%emt 0:00:37]} 12. c4 {[%emt 0:01:44]} b4 {[%emt 0:00:42]} 13. Nc2 {[%emt 0:00:41]} O-O {[%emt 0:01:22]} 14. b3 {[%emt 0:00:34]} Nd7 {[%emt 0:01:58]} 15. Bg4 {[%emt 0:02:19]} Bxg4 {[%emt 0:04:17]} 16. Qxg4 {[%emt 0:00:20]} Bf6 {[%emt 0:02:50]} 17. Rad1 {[%emt 0:01:07]} Qe7 {[%emt 0:02:14]} 18. Qe2 {[%emt 0:02:36]} Rfe8 {[%emt 0:05:10]} 19. Nf3 {[%emt 0:00:59]} Nc5 {[%emt 0:00:30]} 20. Bc1 {[%emt 0:01:18]} Ne6 {[%emt 0:03:31]} 21. Qd2 {[%emt 0:00:26]} Qb7 {[%emt 0:02:03]} 22. Ne3 {[%emt 0:02:14]} Nc5 {[%emt 0:03:11]} 23. Qd5 {[%emt 0:09:39]} Nd4 {[%emt 0:09:06]} 24. Bb2 {[%emt 0:10:35]} Qxd5 {[%emt 0:07:06]} 25. exd5 {[%emt 0:01:30]} Ne2+ {[%emt 0:02:34]} 26. Kh1 {[%emt 0:00:16]} a5 {[%emt 0:04:57]} 27. g3 {[%emt 0:04:48]} a4 {[%emt 0:05:12]} 28. Rfe1 {[%emt 0:02:57]} e4 {[%emt 0:03:13]} 29. Rxe2 {[%emt 0:12:59]} exf3 {[%emt 0:00:28]} 30. Red2 {[%emt 0:00:28]} Ne4 {[%emt 0:03:57]} 31. Rc2 {[%emt 0:00:21]} Bxb2 {[%emt 0:03:12]} 32. Rxb2 {[%emt 0:00:16]} a3 {[%emt 0:01:02]} 33. Rc2 {[%emt 0:00:23]} Nxf2+ {[%emt 0:00:26]} 34. Rxf2 {[%emt 0:00:26]} Rxe3 {[%emt 0:00:12]} 35. Rdf1 {[%emt 0:00:46]} Rae8 {[%emt 0:00:17]} 36. Kg1 {[%emt 0:04:40]} Re2 {[%emt 0:02:20]} 37. Rxe2 {[%emt 0:00:44]} Rxe2 {[%emt 0:00:44]} 38. Rf2 {[%emt 0:00:17]} Rb2 {[%emt 0:00:10]} 39. h3 {[%emt 0:03:23]} g5 {[%emt 0:00:40]} 40. g4 {[%emt 0:00:00]} Kg7 {[%emt 0:00:00]} 41. Rh2 {[%emt 0:10:32]} Kf6 {[%emt 0:00:56]} 42. Rf2 {[%emt 0:00:05]} Ke5 {[%emt 0:00:18]} 43. Rxf3 {[%emt 0:02:25]} Rxa2 {[%emt 0:00:13]} 44. c5 {[%emt 0:00:09]} Rb2 {[%emt 0:00:45]} 45. c6 {[%emt 0:00:15]} a2 {[%emt 0:00:12]} 46. Rf1 {[%emt 0:00:18]} Rb1 {[%emt 0:00:12]} 0-1

[Event "EYCC Open-U10 2019"]
[Site "Bratislava"]
[Date "2019.08.06"]
[Round "5.29"]
[White "Plomp, Mateo"]
[Black "Khoo-Thwe, Louis"]
[Result "0-1"]
[ECO "C55"]
[WhiteElo "1416"]
[BlackElo "1746"]
[Annotator "NA"]
[PlyCount "52"]
[EventDate "2019.08.02"]
[EventType "swiss"]
[EventCountry "SVK"]
[SourceTitle "playchess.com"]
[Source "ChessBase"]
[SourceQuality "1"]
[TimeControl "40/5400+30:1800+30"]

1. e4 {[%emt 0:00:00]} e5 {[%emt 0:00:00]} 2. Nf3 {[%emt 0:00:32]} Nc6 {[%emt 0:00:00]} 3. d4 {[%emt 0:00:41]} exd4 {[%emt 0:00:04]} 4. Bc4 {[%emt 0:00:20]} Nf6 {[%emt 0:00:12]} 5. e5 {[%emt 0:00:29]} d5 {[%emt 0:00:07]} 6. Bb5 {[%emt 0:00:48]} Ne4 {[%emt 0:00:11]} 7. Nxd4 {[%emt 0:00:43]} Bd7 {[%emt 0:00:12]} 8. Bxc6 {[%emt 0:00:44]} bxc6 {[%emt 0:00:25]} 9. O-O {[%emt 0:01:29]} Bc5 {[%emt 0:03:49]} 10. f3 {[%emt 0:01:04]} Ng5 {[%emt 0:00:06]} 11. Be3 {[%emt 0:01:57]} Ne6 {[%emt 0:03:05]} 12. c3 {[%emt 0:04:20]} f6 {[%emt 0:01:22]} 13. f4 {[%emt 0:03:31]} Bxd4 {[%emt 0:09:21]} 14. cxd4 {[%emt 0:05:35]} f5 {[%emt 0:00:12]} 15. g4 {[%emt 0:07:37]} O-O {[%emt 0:04:09]} 16. gxf5 {[%emt 0:07:29]} Rxf5 {[%emt 0:00:08]} 17. Qg4 {[%emt 0:02:31]} g6 {[%emt 0:01:13]} 18. Qg3 {[%emt 0:03:54]} Rb8 {[%emt 0:01:46]} 19. Rf2 {[%emt 0:09:54]} c5 {[%emt 0:01:06]} 20. dxc5 {[%emt 0:03:50]} d4 {[%emt 0:00:23]} 21. Bxd4 {[%emt 0:05:44]} Nxd4 {[%emt 0:00:22]} 22. Rd2 {[%emt 0:01:24]} Bc6 {[%emt 0:01:09]} 23. Kf1 {[%emt 0:06:20]} Qd5 {[%emt 0:01:45]} 24. Qg1 {[%emt 0:03:00]} Rxf4+ {[%emt 0:00:34]} 25. Rf2 {[%emt 0:03:32]} Qc4+ {[%emt 0:00:08]} 26. Ke1 {[%emt 0:00:32]} Qc1# {[%emt 0:00:09]} 0-1

[Event "EYCC Open-U10 2019"]
[Site "Bratislava"]
[Date "2019.08.06"]
[Round "5.30"]
[White "Foldes, Marton Gabor"]
[Black "Sava, Robert-Gabriel"]
[Result "0-1"]
[ECO "B89"]
[WhiteElo "1803"]
[BlackElo "1292"]
[Annotator "NA"]
[PlyCount "108"]
[EventDate "2019.08.02"]
[EventType "swiss"]
[EventCountry "SVK"]
[SourceTitle "playchess.com"]
[Source "ChessBase"]
[SourceQuality "1"]
[TimeControl "40/5400+30:1800+30"]

1. e4 c5 2. Nf3 d6 3. d4 cxd4 4. Nxd4 Nf6 5. Nc3 Nc6 6. Bc4 e6 7. Be3 a6 8. Bb3 Qc7 9. Qe2 Na5 10. O-O Be7 11. f4 b5 12. a3 Bb7 13. Bf2 O-O 14. Bxe6 fxe6 15. Nxe6 Qc4 16. Nxf8 Bxf8 17. e5 Qxe2 18. Nxe2 dxe5 19. fxe5 Ne4 20. Be3 Nc4 21. Bd4 Re8 22. Rf4 Nxe5 23. Raf1 Ng6 24. Rf7 Nd6 25. R7f2 Bd5 26. Nf4 Nxf4 27. Rxf4 Bc4 28. Rd1 Nf7 29. Bc3 Re2 30. a4 Rxc2 31. axb5 axb5 32. Bd4 Re2 33. Ra1 h6 34. Rg4 Ng5 35. h4 Ne6 36. Bc3 Kh7 37. Re1 Bc5+ 38. Kh1 Rxe1+ 39. Bxe1 Bd4 40. b4 Bf6 41. Re4 g5 42. hxg5 Bxg5 43. Bg3 Kg6 44. Bd6 Kf5 45. Re1 Kg4 46. Ra1 Nf4 47. Kh2 Nd3 48. Kh1 Kf5 49. Rb1 Ke4 50. Rf1 Ke3 51. Rf3+ Kd2 52. Rf1 Be3 53. Ra1 Kc3 54. Rb1 Kc2 0-1

[Event "EYCC Open-U10 2019"]
[Site "Bratislava"]
[Date "2019.08.06"]
[Round "5.31"]
[White "Sapocinic, Semion"]
[Black "Oglaza, Dawid"]
[Result "1/2-1/2"]
[ECO "C70"]
[WhiteElo "1781"]
[BlackElo "1284"]
[Annotator "NA"]
[PlyCount "90"]
[EventDate "2019.08.02"]
[EventType "swiss"]
[EventCountry "SVK"]
[SourceTitle "playchess.com"]
[Source "ChessBase"]
[SourceQuality "1"]
[TimeControl "40/5400+30:1800+30"]

1. e4 e5 2. Nf3 Nc6 3. Bb5 a6 4. Ba4 b5 5. Bb3 Nf6 6. d3 Bc5 7. O-O d6 8. c3 h6 9. Nbd2 O-O 10. Re1 Bb6 11. Nf1 Ne7 12. Be3 c5 13. a4 Bb7 14. h3 Ng6 15. Ng3 Qc7 16. Qd2 Kh7 17. Nf5 Ng8 18. Qe2 N6e7 19. Nxe7 Qxe7 20. Nh2 f5 21. f3 f4 22. Bf2 Nf6 23. Bc2 Nh5 24. Nf1 Qg5 25. Kh1 Rf6 26. axb5 axb5 27. Rxa8 Bxa8 28. Ra1 Bb7 29. Nh2 Ng3+ 30. Bxg3 fxg3 31. Ng4 Rf8 32. Ne3 Ra8 33. Rxa8 Bxa8 34. Nf1 h5 35. Qe3 Qxe3 36. Nxe3 g6 37. Nf1 h4 38. Nd2 Bc6 39. Bb3 Kg7 40. Bd5 Bd7 41. Bb7 Kf6 42. Bd5 Kg5 43. Nf1 Kf4 44. Bf7 g5 45. c4 b4 1/2-1/2

[Event "EYCC Open-U10 2019"]
[Site "Bratislava"]
[Date "2019.08.06"]
[Round "5.32"]
[White "Kisic, Jovan"]
[Black "Mertins, Ostap"]
[Result "1-0"]
[ECO "A40"]
[WhiteElo "1757"]
[BlackElo "1339"]
[Annotator "NA"]
[PlyCount "59"]
[EventDate "2019.08.02"]
[EventType "swiss"]
[EventCountry "SVK"]
[SourceTitle "playchess.com"]
[Source "ChessBase"]
[SourceQuality "1"]
[TimeControl "40/5400+30:1800+30"]

1. d4 {[%emt 0:00:48]} e6 {[%emt 0:00:00]} 2. c4 {[%emt 0:01:29]} c5 {[%emt 0:00:00]} 3. e3 {[%emt 0:01:23]} Nf6 {[%emt 0:00:26]} 4. Nc3 {[%emt 0:01:42]} a6 {[%emt 0:01:08]} 5. Nf3 {[%emt 0:01:31]} Be7 {[%emt 0:01:43]} 6. Bd3 {[%emt 0:02:50]} O-O {[%emt 0:02:03]} 7. O-O {[%emt 0:01:28]} d6 {[%emt 0:01:51]} 8. b3 {[%emt 0:02:55]} Nbd7 {[%emt 0:02:17]} 9. Bb2 {[%emt 0:01:26]} b6 {[%emt 0:01:26]} 10. Re1 {[%emt 0:03:45]} Bb7 {[%emt 0:00:32]} 11. e4 {[%emt 0:02:43]} cxd4 {[%emt 0:01:46]} 12. Nxd4 {[%emt 0:01:21]} Nc5 {[%emt 0:01:31]} 13. Rc1 {[%emt 0:04:04]} Qc7 {[%emt 0:04:21]} 14. b4 {[%emt 0:03:15]} Ncd7 {[%emt 0:01:18]} 15. Qb3 {[%emt 0:05:45]} Ne5 {[%emt 0:01:19]} 16. Bf1 {[%emt 0:01:18]} Rac8 {[%emt 0:02:27]} 17. b5 {[%emt 0:05:51]} Nxc4 {[%emt 0:09:30]} 18. bxa6 {[%emt 0:03:46]} Na5 {[%emt 0:08:16]} 19. Qa4 {[%emt 0:03:31]} Bc6 {[%emt 0:03:56]} 20. Ncb5 {[%emt 0:06:47]} Bxb5 {[%emt 0:04:38]} 21. Nxb5 {[%emt 0:02:15]} Qd7 {[%emt 0:04:34]} 22. Bd4 {[%emt 0:03:51]} Rc6 23. Bxb6 {[%emt 0:07:18]} Rxb6 {[%emt 0:12:30]} 24. Rc7 {[%emt 0:02:47]} Qd8 {[%emt 0:04:35]} 25. Qxa5 {[%emt 0:00:27]} Rc6 {[%emt 0:00:59]} 26. a7 {[%emt 0:02:17]} Rxc7 {[%emt 0:02:28]} 27. Nxc7 {[%emt 0:00:22]} Qd7 {[%emt 0:01:32]} 28. a8=Q {[%emt 0:00:18]} Rxa8 {[%emt 0:00:26]} 29. Qxa8+ {[%emt 0:00:12]} Bd8 {[%emt 0:00:34]} 30. Nb5 1-0

[Event "EYCC Open-U10 2019"]
[Site "Bratislava"]
[Date "2019.08.06"]
[Round "5.33"]
[White "Farias, David Nuno M E"]
[Black "Tabuenca Mendataurigoitia, Dani"]
[Result "0-1"]
[ECO "B01"]
[WhiteElo "1372"]
[BlackElo "1765"]
[Annotator "NA"]
[PlyCount "108"]
[EventDate "2019.08.02"]
[EventType "swiss"]
[EventCountry "SVK"]
[SourceTitle "playchess.com"]
[Source "ChessBase"]
[SourceQuality "1"]
[TimeControl "40/5400+30:1800+30"]

1. e4 d5 2. exd5 Qxd5 3. Nc3 Qd6 4. d4 Nf6 5. Nf3 g6 6. g3 Bg7 7. Bg2 O-O 8. O-O Nc6 9. Bf4 Qd8 10. Qd2 Bg4 11. Rad1 Re8 12. h3 Bxf3 13. Bxf3 Qd7 14. Kh2 a6 15. Rfe1 e6 16. b3 Rad8 17. d5 exd5 18. Nxd5 Nxd5 19. Rxe8+ Qxe8 20. Bxd5 Nd4 21. Qe3 Qxe3 22. fxe3 Rxd5 23. exd4 c5 24. c3 cxd4 25. Kg2 f5 26. Kf3 Kf7 27. Be3 d3 28. c4 Rd7 29. Bb6 Ke6 30. Ke3 Bh6+ 31. Kf3 d2 32. Be3 Rd3 33. Rxd2 Rxe3+ 34. Kg2 Rxg3+ 35. Kxg3 Bxd2 36. a3 Ke5 37. b4 Kd4 38. c5 Bc1 39. a4 Bd2 40. b5 axb5 41. axb5 Kxc5 42. b6 Kd4 43. Kf3 g5 44. Kg3 h5 45. h4 f4+ 46. Kf3 g4+ 47. Kg2 f3+ 48. Kf2 Ke4 49. Kg3 Bf4+ 50. Kf2 g3+ 51. Kg1 Be3+ 52. Kh1 g2+ 53. Kh2 g1=Q+ 54. Kh3 Qg2# 0-1

[Event "EYCC Open-U10 2019"]
[Site "Bratislava"]
[Date "2019.08.06"]
[Round "5.34"]
[White "Jura, Michal"]
[Black "Panda, Barnabas"]
[Result "0-1"]
[ECO "A28"]
[WhiteElo "1384"]
[BlackElo "1625"]
[Annotator "NA"]
[PlyCount "64"]
[EventDate "2019.08.02"]
[EventType "swiss"]
[EventCountry "SVK"]
[SourceTitle "playchess.com"]
[Source "ChessBase"]
[SourceQuality "1"]
[TimeControl "40/5400+30:1800+30"]

1. c4 {[%emt 0:00:41]} e5 {[%emt 0:00:00]} 2. Nc3 {[%emt 0:00:30]} Nf6 {[%emt 0:00:27]} 3. Nf3 {[%emt 0:01:03]} Nc6 {[%emt 0:00:53]} 4. e3 {[%emt 0:00:31]} e4 {[%emt 0:03:23]} 5. Ng5 {[%emt 0:01:08]} Qe7 {[%emt 0:02:02]} 6. Qc2 {[%emt 0:03:51]} Nb4 {[%emt 0:03:28]} 7. Qb1 {[%emt 0:01:06]} g6 {[%emt 0:05:26]} 8. Ngxe4 {[%emt 0:02:16]} Nxe4 {[%emt 0:01:29]} 9. Nxe4 {[%emt 0:01:35]} Bg7 {[%emt 0:01:03]} 10. a3 {[%emt 0:01:22]} Nc6 {[%emt 0:00:34]} 11. d4 {[%emt 0:01:27]} f5 {[%emt 0:01:26]} 12. Nc3 {[%emt 0:03:30]} Nxd4 {[%emt 0:01:01]} 13. Nd5 {[%emt 0:01:24]} Qe5 {[%emt 0:02:08]} 14. f4 {[%emt 0:00:25]} Qd6 {[%emt 0:00:54]} 15. exd4 {[%emt 0:00:39]} c6 {[%emt 0:00:43]} 16. Ne3 {[%emt 0:00:49]} Qxd4 {[%emt 0:01:59]} 17. g3 {[%emt 0:01:10]} O-O {[%emt 0:02:27]} 18. Qd3 {[%emt 0:01:22]} Qf6 {[%emt 0:01:13]} 19. Bg2 {[%emt 0:00:59]} d6 {[%emt 0:01:43]} 20. O-O {[%emt 0:00:43]} Re8 {[%emt 0:01:51]} 21. Rd1 {[%emt 0:01:58]} Bf8 {[%emt 0:02:59]} 22. Qd4 {[%emt 0:02:05]} Qf7 {[%emt 0:02:21]} 23. b3 {[%emt 0:00:55]} Bg7 {[%emt 0:02:05]} 24. Qxd6 {[%emt 0:03:20]} Bxa1 {[%emt 0:00:35]} 25. Nc2 {[%emt 0:00:37]} Bg7 {[%emt 0:01:40]} 26. Nb4 {[%emt 0:02:12]} Be6 {[%emt 0:03:02]} 27. Nxc6 {[%emt 0:02:59]} bxc6 {[%emt 0:00:13]} 28. Bxc6 {[%emt 0:00:14]} Rad8 {[%emt 0:00:27]} 29. Bxe8 {[%emt 0:00:28]} Rxe8 {[%emt 0:00:24]} 30. c5 {[%emt 0:01:38]} Bxb3 {[%emt 0:01:49]} 31. Rf1 {[%emt 0:01:29]} Bf8 {[%emt 0:02:38]} 32. Qc6 {[%emt 0:12:22]} Bd5 {[%emt 0:00:36]} 0-1